Cogmind - Beta 10.2 @@@ ROGUE MODE // 2021.06.16 @ 03:59:59 Player: Exp. Geonium Core Result: Destroyed by Y-45 Defender with Heavy Assault Rifle Performance ------------- Evolutions (1) 500 Regions Visited (2) 400 Robots Destroyed (13) 65 Value Destroyed (408) 408 Prototype IDs (0) 0 Alien Tech Used (0) 0 Bonus (200) 200 TOTAL SCORE: 1573 Bonus ------- Pacifist 200 Cogmind --------- Core Integrity 0/400 Matter 300/300 Energy 100/100 System Corruption 2% Temperature Cool (9) Movement Core (1100) Ox21 Location -9/Materials Parts ------- > --- POWER (1) -------- (None) > --- PROPULSION (3) --- (None) > --- UTILITY (3) ------ High-capacity Storage Unit High-capacity Storage Unit > --- WEAPON (2) ------- (None) > --- INVENTORY (20) --- Armored Wheel Small Storage Unit Large Storage Unit Large Storage Unit Light Armor Plating Peak State ------------ > --- POWER ------------ Ion Engine > --- PROPULSION ------- Light Treads Light Treads Armored Wheel > --- UTILITY ---------- Large Storage Unit High-capacity Storage Unit High-capacity Storage Unit > --- WEAPON ----------- (None) > --- INVENTORY -------- Armored Wheel Small Storage Unit Large Storage Unit [Rating: 8] Favorites ----------- Power Ion Engine Engine Ion Engine Propulsion Light Treads Treads Light Treads Leg Aluminum Leg Wheel Armored Wheel Utility High-capacity Storage Unit Storage High-capacity Storage Unit Protection Hardened Light Armor Plating Weapon None Build | -11 -10 -9 ------- Run | Scr Mat Mat Slots Evolved 2 | . . 2 Power . | . . . Propulsion 1 | . . 1 Utility 1 | . . 1 Weapon . | . . . Parts Attached 13 | 2 1 10 Power 1 | . . 1 Engine 1 | . . 1 Core . | . . . Reactor . | . . . Propulsion 5 | 2 . 3 Treads 3 | 2 . 1 Leg 1 | . . 1 Wheel 1 | . . 1 Hover . | . . . Flight . | . . . Utility 7 | . 1 6 Device . | . . . Storage 5 | . 1 4 Processor . | . . . Hackware . | . . . Protection 2 | . . 2 Artifact . | . . . Weapon . | . . . Energy Gun . | . . . Energy Cannon . | . . . Ballistic Gun . | . . . Ballistic Cannon . | . . . Launcher . | . . . Special Weapon . | . . . Impact Weapon . | . . . Slashing Weapon . | . . . Piercing Weapon . | . . . Special Melee Weapon . | . . . Unidentified Prototypes . | . . . Parts Lost 8 | . . 8 Power 1 | . . 1 Propulsion 5 | . . 5 Utility 2 | . . 2 Weapon . | . . . Highest Loss Streak 3 | . . 3 Average Slot Usage (%) 62 | . 32 66 Engine 4 | . . 5 Treads 17 | . 28 15 Leg 3 | . . 4 Wheel 8 | . . 9 Storage 25 | . 4 28 Protection 2 | . . 3 Naked Turns . | . . . Heaviest Build 85 | . 4 85 Greatest Support 40 | 40 3 40 Greatest Overweight (x) 7 | . 1 7 Average Overweight (x) 2 | . . 3 Largest Inventory Capacity 26 | 4 6 26 Average Capacity 20 | 4 4 22 Most Carried 6 | 2 5 6 Average Carried 4 | . 3 4 Final Capacity 20 | 4 6 20 Final Carried 5 | 2 5 5 Class Distribution -------------------- 81% | Hauler-Mutant 18% | Mutant Dominant Class ---------------- Mutant | -10/Materials Hauler-Mutant | -9/Materials Resources | -11 -10 -9 ----------- Run | Scr Mat Mat Matter Collected 259 | 189 . 70 Remotely . | . . . Salvage Created 576 | . . 576 Parts 39 | . . 39 Haulers Intercepted 1 | . . 1 Recyclers Shooed 1 | . . 1 Parts Field Recycled . | . . . Retrieved Matter . | . . . Parts Self-Destructed . | . . . Prevented . | . . . Kills | -11 -10 -9 ------- Run | Scr Mat Mat Combat Hostiles Destroyed 12 | . . 12 Melee 12 | . . 12 Classes Destroyed 4 | . . 4 Hauler 1 | . . 1 Swarmer 2 | . . 2 Grunt 7 | . . 7 Sentry 3 | . . 3 Best Kill Streak 3 | . . 3 Combat Bots Only 2 | . . 2 Max Kills in Single Turn 1 | . . 1 Gunslinging . | . . . Exploded . | . . . Melee 1 | . . 1 Uniques/NPCs Destroyed . | . . . Combat | -11 -10 -9 -------- Run | Scr Mat Mat Damage Taken 1847 | . . 1847 Core 413 | . . 413 Absorbed by Shields . | . . . Core Remaining (%) 100 | 100 100 . Volleys Fired . | . . . Largest . | . . . Hottest . | . . . Shots Fired . | . . . Gun . | . . . Cannon . | . . . Launcher . | . . . Special . | . . . Kinetic . | . . . Thermal . | . . . Explosive . | . . . Electromagnetic . | . . . Robot Hit Streak . | . . . Robot Miss Streak . | . . . Penetration Max . | . . . Secondary Targets . | . . . Shots Hit Robots . | . . . Core Hits 46 | . . 46 Critical Hits . | . . . Critical Kills . | . . . Critical Parts Destroyed . | . . . Melee Attacks . | . . . Impact . | . . . Slashing . | . . . Piercing . | . . . Sneak Attacks . | . . . Combat Hostiles . | . . . Follow-up Attacks . | . . . Damage Inflicted 438 | . . 438 Guns . | . . . Cannons . | . . . Explosions . | . . . Melee . | . . . Ramming 438 | . . 438 Kinetic . | . . . Thermal . | . . . Explosive . | . . . Electromagnetic . | . . . Impact . | . . . Slashing . | . . . Piercing . | . . . Highest Corruption 2 | . 2 2 Average Corruption 2 | . 2 2 Corruption Purged . | . . . Overload Shots . | . . . Overflow Damage . | . . . Projectiles . | . . . Explosions . | . . . Melee . | . . . Knockbacks 1 | . . 1 Impact 1 | . . 1 Kinetic . | . . . Secondary . | . . . Self-Inflicted Damage 16 | . . 16 Shots . | . . . Rammed 87 | . . 87 Targets Rammed 89 | . . 89 Kicked . | . . . Crushed 2 | . . 2 Highest Temperature . | . . . Average Temperature . | . . . Received Heat Transfer 801 | . . 801 Siege Activations . | . . . Robots Corrupted . | . . . Combat Hostiles . | . . . Parts Fried . | . . . Impact Corruptions . | . . . Robots Melted . | . . . Combat Hostiles . | . . . Parts Melted . | . . . Heat Transferred . | . . . Parts Sabotaged . | . . . Parts Stolen . | . . . Parts Stripped . | . . . Power Chain Reactions . | . . . Missiles Intercepted . | . . . Alert | -11 -10 -9 ------- Run | Scr Mat Mat Peak Influence 230 | . 60 230 Initial 25 | . . 25 Average 80 | . 21 92 Maximum Alert Level 1 | . . 1 Low Security (%) 89 | 100 100 87 Level 1 10 | . . 12 Level 2 . | . . . Level 3 . | . . . Level 4 . | . . . Level 5 . | . . . High Security . | . . . Max Security . | . . . Squads Dispatched 1 | . . 1 Investigation . | . . . Extermination . | . . . Reinforcement 1 | . . 1 Assault . | . . . Garrison . | . . . Intercept . | . . . Construction Impeded . | . . . Haulers Reinforced . | . . . Stealth | -11 -10 -9 --------- Run | Scr Mat Mat Distress Signals 1 | . . 1 Communications Jammed . | . . . Distress Signals . | . . . Times Spotted 30 | . 4 26 Peak Tracking Total 7 | . 4 7 Tactical Retreats 1 | . 1 . Traps | -11 -10 -9 ------- Run | Scr Mat Mat Traps Triggered 1 | . 1 . Indirectly . | . . . Trap Hack Attempts . | . . . Triggered . | . . . Disarmed . | . . . Reprogrammed . | . . . Reused . | . . . Traps Extracted . | . . . Installed . | . . . Triggered . | . . . Machines | -11 -10 -9 ---------- Run | Scr Mat Mat Machines Disabled . | . . . Max in Single Turn . | . . . Machines Sabotaged . | . . . Garrisons Compromised . | . . . Overloaded Fab Kills . | . . . Fab Network Shutdowns . | . . . Hacking | -11 -10 -9 --------- Run | Scr Mat Mat Machines Accessed 2 | . 1 1 Terminals 2 | . 1 1 Fabricators . | . . . Repair Stations . | . . . Recycling Units . | . . . Scanalyzers . | . . . Garrison Access . | . . . Total Hacks 5 | . 3 2 Successful 1 | . . 1 Failed 4 | . 3 1 Catastrophic . | . . . Database Lockouts . | . . . Manual 5 | . 3 2 Terminals 5 | . 3 2 Fabricators . | . . . Repair Stations . | . . . Recycling Units . | . . . Scanalyzers . | . . . Garrison Access . | . . . Terminal Hacks 1 | . . 1 Registered Components 1 | . . 1 Fabricator Hacks . | . . . Repair Station Hacks . | . . . Recycling Unit Hacks . | . . . Scanalyzer . | . . . Garrison Access Hacks . | . . . Unauthorized Hacks . | . . . Terminals . | . . . Fabricators . | . . . Repair Stations . | . . . Recycling Units . | . . . Scanalyzers . | . . . Garrison Access . | . . . Data Cores Recovered . | . . . Used . | . . . Hacking Detections 1 | . 1 . Full Trace Events 1 | . 1 . Feedback Events . | . . . Feedback Blocked . | . . . Robot Schematics Acquired . | . . . Robots Built . | . . . Matter . | . . . Time . | . . . Total Robot Build Rating . | . . . Part Schematics Acquired . | . . . Parts Built . | . . . Matter . | . . . Time . | . . . Total Part Build Rating . | . . . Parts Repaired . | . . . Time . | . . . Parts Recycled . | . . . Recycled Matter . | . . . Retrieved Matter . | . . . Retrieved Components . | . . . Parts Scanalyzed . | . . . Part Schematics Acquired . | . . . Parts Damaged . | . . . Bothacking | -11 -10 -9 ------------ Run | Scr Mat Mat Used RIF Installer . | . . . Robots Hacked . | . . . Non-combat . | . . . Combat . | . . . Robot Hacks Applied . | . . . Relay Couplers Released . | . . . Robots Rewired . | . . . Allies Hacked . | . . . Hacks Repelled . | . . . Allies | -11 -10 -9 -------- Run | Scr Mat Mat Total Allies . | . . . Largest Group . | . . . Highest-Rated Group . | . . . Highest-Rated Ally . | . . . Total Orders . | . . . Ally Attacks . | . . . Total Damage . | . . . Kills . | . . . Allies Corrupted . | . . . Allies Melted . | . . . Intel | -11 -10 -9 ------- Run | Scr Mat Mat Robot Analysis Total . | . . . Derelict Logs Recovered . | . . . Drone Launches . | . . . Drone Recoveries . | . . . Exploration | -11 -10 -9 ------------- Run | Scr Mat Mat Turns Passed 757 | 41 69 647 Spaces Moved 421 | 52 119 250 Core 198 | 43 119 36 Treads 121 | 9 . 112 Legs . | . . . Wheels 102 | . . 102 Hover . | . . . Flight . | . . . Fastest Speed 50 | 50 50 100 Average Speed 122 | 69 54 165 Slowest Speed 240 | 160 100 240 Overloaded Moves . | . . . Propulsion Burnouts . | . . . Robots Hopped . | . . . Cave-ins Triggered . | . . . Exploration Rate (%) 23 | 3 41 26 Regions Visited 2 Branch Regions . Pre-discovered Areas . | . . . Known Exits Taken . | . . . Unknown Exits Taken 2 | 1 1 . Scrap Searched . | . . . Spaces Dug . | . . . Terrain Destroyed . | . . . Melee . | . . . Projectile . | . . . AOE . | . . . Terrain Rammed . | . . . Walls Destroyed . | . . . Machines Disabled . | . . . Actions | -11 -10 -9 --------- Run | Scr Mat Mat Total 540 | 55 123 362 Wait 9 | . . 9 Move 419 | 51 118 250 Hop . | . . . Pick Up 9 | 2 4 3 Fast Attach 6 | 2 . 4 Attach 5 | . 1 4 Detach 1 | . . 1 Swap 2 | . . 2 Drop . | . . . Fire . | . . . Melee . | . . . Ram 7 | . . 7 Kick . | . . . Crush 82 | . . 82 Escape Stasis . | . . . Rewire . | . . . Trap . | . . . Miscellaneous . | . . . Route ------- -11/Scrapyard -10/Materials -9/Materials History --------- Turn | Location | Event 4 | -11/Scrapyard | Discovered new exit (range 15) 42 | -11/Scrapyard | Entered Materials 87 | -10/Materials | Discovered new exit (range 10) 111 | -10/Materials | Entered another Materials area 111 | -9/Materials | Evolved 2 slots: Propulsion x1, Utility x1 443 | -9/Materials | Build established: Hauler-Mutant 673 | -9/Materials | Core integrity fell below 50% 732 | -9/Materials | Core integrity fell below 20% 758 | -9/Materials | Destroyed by Y-45 Defender with Heavy Assault Rifle Last Messages --------------- 00664_ Slammed into W-16 Scout. 00668_ K-01 Serf collects debris. 00669_ Slammed into W-16 Scout. 00671_ Slammed into Y-45 Defender. 00690_ Arm. Wheel destroyed. 00690_ Hrd. Light Armor Plating destroyed. 00691_ Slammed into Y-45 Defender. 00695_ Y-45 Defender destroyed. 00708_ Slammed into O-16 Technician. 00710_ Slammed into W-16 Scout. 00721_ Slammed into G-34 Mercenary. 00721_ G-34 Mercenary destroyed. 00727_ Slammed into Y-45 Defender. 00728_ Aluminum Leg destroyed. 00729_ Slammed into Y-45 Defender. 00732_ Lgt. Treads destroyed. 00733_ Slammed into Y-45 Defender. 00755_ Hrd. Light Armor Plating destroyed. 00756_ Slammed into Y-45 Defender. 00756_ Destabilizing: System corrupted (+2). Map ----- +----------------------------------------------------+ | %# """ #???# ??# """ """ #??# #????????????? | | ## """ #???? ??# """ """ #??# +????????????? | | ## = #???? ??# #??# #????????????? | | ###########???# ??# ???# #????????????? | | #????????????? ??# ! ???# % #????????????? | | ##???????????? ??? #?# #???????????? | | #???????????? ?????#######??# #???????????? | | #???????????? ??????????????# T #???????????? | | #???????????? ??????????????# #????????[??? | | *#????????????# #??????????????# #???????????? | | ###???????????# #??????????????#######???????????? | | #???????????# #????????????????????????????????? | | " #???????????# #????????????????????????????????? | | " #???????????# #????????????????????????????????? | | " #???????????#[#????????????????????????????????? | | #????????####%##???#######?????????????????????? | | " #????????#% %%%#???# #?????????????????????? | | " ##########%%%%%#####%% # """????????????????? | | " + %%[%=%%%%%%% + """????????????????? | | ########## !%%*#####w% # """????????????????? | | #????????#!%%%=#???#% #?????????????????????? | | ###????????#######???## ##?????????????????????? | | ????????]?????????????# #??????????????????????? | | ??????????????????????#g%=#??????????????????????? | | ??????????????????????# =%#??????????????????????? | | ??????????????????????# Y@#??????????????????????? | | ??????????????????????# %%#??????????????????????? | | ??????????????????????# #??????????????????????? | | ?????????????????????# #?????????????????????? | | ???????????????????? #?????????????????????? | | ?????????????????? +?????????????????????? | | ????????????????? #?????????????????????? | | ????????????????###### #?????????????????????? | | ?????????????????????#######?????????????????????? | | ?????????????????????????????????????????????????? | | ?????????????????????????????????????????????????? | | ?????????????????????????????????????????????????? | | ?????????????????????????????????????????????????? | | ?????????????????????????????????????????????????? | | ?????????????????????????????????????????????????? | | ?????????????????????????????????????????????????? | | ?????????????????????????????????????????????????? | | ?????????????????????????????????????????????????? | | ?????????????????????????????????????????????????? | | ?????????????????????????????????????????????????? | | ?????????????????????????????????????????????????? | | ?????????????????????????????????????????????????? | | ?????????????????????????????????????????????????? | | ?????????????????????????????????????????????????? | | ?????????????????????????????????????????????????? | +----------------------------------------------------+ Best States ------------- Heat Dissipation 28 Energy Generation 10 Energy Capacity 250 Matter Stores 300 Matter Capacity 300 Sight Range 16 Terrain Scan Density 10 Armor Coverage 150 Evasion (%) 50 Recoil Reduction 2 Item Schematics ----------------- None Robot Schematics ------------------ None Fabricated ------------ Nothing Alien Tech Used ----------------- None Achievements -------------- None Challenges ------------ None Game ------ Seed DefenseChromaticNetwork Manual? 0 Play Time 00:07:12 Cumulative 122.9 hours Start 2021.06.16 @ 03:54:00 End 2021.06.16 @ 03:59:59 Sessions 1 Manual Loads 0 Difficulty Rogue Special Mode None Game No. 178 Rogue 178 Adventurer 0 Explorer 0 Win Type - Total 5 Types 4/0/0/1/0/0/0/0/0 Lore% 49 Gallery% 72 Achievement% 58 Wizard Run 0 Options --------- ASCII 0 Keyboard 0 Movement Numpad Keybinds 0 Fullscreen 1 Font 18/Terminus Map View 76x50 Tactical HUD 1 Map Filters NONE Filters NONE Steam 1 RUN: de9ee9b7-1235-4c66-a676-32a3c02f4d27